[Event "*** SCC Grand Prix: Titled Tuesday Blitz"]
[Site "Chess.com"]
[Date "2020.07.07"]
[Round "2"]
[White "Chess_Boxer123"]
[Black "AccioChess"]
[Result "0-1"]
[WhiteElo "2666"]
[BlackElo "2489"]
[TimeControl "180+1"]
[EndTime "10:18:44 PDT"]
[Termination "AccioChess won by resignation"]

1. d4 {[%clk 0:03:00.9]} 1... Nf6 {[%clk 0:02:59.4]} 2. c4 {[%clk 0:03:00.9]}
2... e6 {[%clk 0:02:59.7]} 3. Nc3 {[%clk 0:03:00.7]} 3... Bb4 {[%clk 0:02:59.6]}
4. f3 {[%clk 0:03:01]} 4... O-O {[%clk 0:02:56.6]} 5. a3 {[%clk 0:03:00.6]} 5...
Bxc3+ {[%clk 0:02:52.2]} 6. bxc3 {[%clk 0:03:01.5]} 6... d5 {[%clk 0:02:52.8]}
7. e3 {[%clk 0:03:01.7]} 7... b6 {[%clk 0:02:50.2]} 8. cxd5 {[%clk 0:03:01.2]}
8... exd5 {[%clk 0:02:49.5]} 9. Bd3 {[%clk 0:03:01.3]} 9... c5 {[%clk 0:02:47]}
10. Ne2 {[%clk 0:03:00.2]} 10... Ba6 {[%clk 0:02:44.8]} 11. O-O {[%clk
0:02:59.9]} 11... Bxd3 {[%clk 0:02:43.4]} 12. Qxd3 {[%clk 0:03:00.8]} 12... Re8
{[%clk 0:02:43.4]} 13. Ng3 {[%clk 0:03:00.9]} 13... Nc6 {[%clk 0:02:41.8]} 14.
Bb2 {[%clk 0:03:01.1]} 14... h5 {[%clk 0:02:32.3]} 15. Rad1 {[%clk 0:02:42.6]}
15... Qe7 {[%clk 0:02:23]} 16. Rfe1 {[%clk 0:02:35.8]} 16... Qe6 {[%clk
0:02:21.2]} 17. h4 {[%clk 0:02:25]} 17... Rad8 {[%clk 0:01:58.6]} 18. e4 {[%clk
0:02:20.9]} 18... dxe4 {[%clk 0:01:48.1]} 19. fxe4 {[%clk 0:02:20.5]} 19... Qg4
{[%clk 0:01:40.9]} 20. Qf3 {[%clk 0:01:55.4]} 20... Qxh4 {[%clk 0:01:27.7]} 21.
Nf5 {[%clk 0:01:47]} 21... Qg4 {[%clk 0:01:16.4]} 22. Nh6+ {[%clk 0:01:41.1]}
22... gxh6 {[%clk 0:01:14.3]} 23. Qxf6 {[%clk 0:01:41.5]} 23... Re6 {[%clk
0:00:51.1]} 24. Qf2 {[%clk 0:01:30.8]} 24... Rxe4 {[%clk 0:00:34]} 25. d5 {[%clk
0:01:15]} 25... Ne5 {[%clk 0:00:32.2]} 26. Rxe4 {[%clk 0:01:06.3]} 26... Qxd1+
{[%clk 0:00:25.5]} 27. Re1 {[%clk 0:01:04.9]} 27... Qxd5 {[%clk 0:00:23.8]} 28.
c4 {[%clk 0:01:00.5]} 28... Nxc4 {[%clk 0:00:23.7]} 29. Bf6 {[%clk 0:00:54.6]}
29... Kf8 {[%clk 0:00:13.3]} 30. Qf4 {[%clk 0:00:50.9]} 30... Qd2 {[%clk
0:00:09.6]} 31. Be7+ {[%clk 0:00:34.1]} 31... Kg7 {[%clk 0:00:08.8]} 32. Qg3+
{[%clk 0:00:34.4]} 32... Kh7 {[%clk 0:00:08.7]} 33. Bxd8 {[%clk 0:00:29.1]}
33... Qxd8 {[%clk 0:00:09.6]} 34. Rf1 {[%clk 0:00:27.6]} 34... Qd4+ {[%clk
0:00:09.7]} 35. Kh1 {[%clk 0:00:27.5]} 35... Nd6 {[%clk 0:00:10.6]} 36. Rf6
{[%clk 0:00:21.1]} 36... Qxf6 {[%clk 0:00:09.6]} 37. Qd3+ {[%clk 0:00:15.9]}
37... Qg6 {[%clk 0:00:09.8]} 38. Qd5 {[%clk 0:00:15.5]} 38... Nf5 {[%clk
0:00:10.3]} 39. Qb7 {[%clk 0:00:11.6]} 39... Ne3 {[%clk 0:00:10.4]} 40. Kh2
{[%clk 0:00:07.8]} 40... Qxg2+ {[%clk 0:00:10.3]} 0-1

[Event "*** SCC Grand Prix: Titled Tuesday Blitz"]
[Site "Chess.com"]
[Date "2020.07.07"]
[Round "2"]
[White "imdarealist"]
[Black "saikrishnaReturns"]
[Result "1-0"]
[WhiteElo "2339"]
[BlackElo "2649"]
[TimeControl "180+1"]
[EndTime "10:18:44 PDT"]
[Termination "imdarealist won by checkmate"]

1. d4 {[%clk 0:03:00.9]} 1... Nf6 {[%clk 0:02:59.3]} 2. Bf4 {[%clk 0:02:59.7]}
2... g6 {[%clk 0:02:59.5]} 3. e3 {[%clk 0:03:00.2]} 3... Bg7 {[%clk 0:02:59.9]}
4. Nf3 {[%clk 0:03:00.4]} 4... d6 {[%clk 0:03:00.4]} 5. h3 {[%clk 0:03:00.8]}
5... Nfd7 {[%clk 0:03:00]} 6. Bh2 {[%clk 0:02:59.2]} 6... e5 {[%clk 0:02:59.3]}
7. Be2 {[%clk 0:02:56.5]} 7... Nc6 {[%clk 0:02:59.3]} 8. O-O {[%clk 0:02:55]}
8... O-O {[%clk 0:02:59.2]} 9. c4 {[%clk 0:02:53.3]} 9... Qf6 {[%clk 0:02:57.4]}
10. d5 {[%clk 0:02:42.5]} 10... Nd8 {[%clk 0:02:55.6]} 11. Nc3 {[%clk
0:02:41.2]} 11... Qe7 {[%clk 0:02:48.2]} 12. Qc2 {[%clk 0:02:24.6]} 12... f5
{[%clk 0:02:46.8]} 13. b4 {[%clk 0:02:21.4]} 13... a5 {[%clk 0:02:41.8]} 14. a3
{[%clk 0:02:20.7]} 14... g5 {[%clk 0:02:32.6]} 15. Nd2 {[%clk 0:02:16.3]} 15...
e4 {[%clk 0:02:27.7]} 16. Nb3 {[%clk 0:02:10.3]} 16... b6 {[%clk 0:02:04.6]} 17.
Rac1 {[%clk 0:02:02.7]} 17... Nb7 {[%clk 0:01:52.8]} 18. Nb5 {[%clk 0:01:59.6]}
18... Ne5 {[%clk 0:01:50.7]} 19. c5 {[%clk 0:01:37.3]} 19... bxc5 {[%clk
0:01:35.6]} 20. bxc5 {[%clk 0:01:36.2]} 20... a4 {[%clk 0:01:33.3]} 21. cxd6
{[%clk 0:01:31.2]} 21... cxd6 {[%clk 0:01:25.5]} 22. N3d4 {[%clk 0:01:27.8]}
22... Nc5 {[%clk 0:01:21.1]} 23. Nc6 {[%clk 0:01:21]} 23... Nxc6 {[%clk
0:01:14.8]} 24. dxc6 {[%clk 0:01:21.9]} 24... Be5 {[%clk 0:01:12.4]} 25. Bxe5
{[%clk 0:01:10.1]} 25... Qxe5 {[%clk 0:01:13.3]} 26. Rfd1 {[%clk 0:01:10]} 26...
Rd8 {[%clk 0:01:09.1]} 27. Bc4+ {[%clk 0:01:03.4]} 27... Kg7 {[%clk 0:01:07.2]}
28. Rd5 {[%clk 0:01:01.6]} 28... Qe7 {[%clk 0:01:01.9]} 29. Rcd1 {[%clk
0:00:55.2]} 29... Be6 {[%clk 0:01:00.2]} 30. Rxd6 {[%clk 0:00:53.5]} 30... Bxc4
{[%clk 0:01:00]} 31. Qxc4 {[%clk 0:00:52.1]} 31... Nd3 {[%clk 0:01:00]} 32. Rxd8
{[%clk 0:00:40.4]} 32... Rxd8 {[%clk 0:00:58.3]} 33. c7 {[%clk 0:00:40.6]} 33...
Rc8 {[%clk 0:00:58.4]} 34. Qxa4 {[%clk 0:00:34.3]} 34... f4 {[%clk 0:00:48.3]}
35. Qd4+ {[%clk 0:00:29.5]} 35... Kg6 {[%clk 0:00:40.3]} 36. Qb6+ {[%clk
0:00:24.3]} 36... Kh5 {[%clk 0:00:31.5]} 37. a4 {[%clk 0:00:24.2]} 37... g4
{[%clk 0:00:20.7]} 38. hxg4+ {[%clk 0:00:20.8]} 38... Kxg4 {[%clk 0:00:21.6]}
39. Qh6 {[%clk 0:00:20.6]} 39... f3 {[%clk 0:00:20.6]} 40. Qh3+ {[%clk
0:00:19.8]} 40... Kg5 {[%clk 0:00:21.1]} 41. Qxc8 {[%clk 0:00:19.7]} 41... Qf7
{[%clk 0:00:17.9]} 42. Qh3 {[%clk 0:00:19]} 42... fxg2 {[%clk 0:00:16.3]} 43.
Qxg2+ {[%clk 0:00:19.3]} 43... Kh6 {[%clk 0:00:16.7]} 44. c8=Q {[%clk
0:00:19.6]} 44... Nxf2 {[%clk 0:00:16.9]} 45. Qxf2 {[%clk 0:00:18.3]} 45... Qg6+
{[%clk 0:00:16.2]} 46. Qg2 {[%clk 0:00:16.8]} 46... Qf5 {[%clk 0:00:14.4]} 47.
Rd6+ {[%clk 0:00:12.7]} 47... Qg6 {[%clk 0:00:12.4]} 48. Rxg6+ {[%clk
0:00:12.1]} 48... hxg6 {[%clk 0:00:13.3]} 49. Qh8# {[%clk 0:00:11.9]} 1-0

[Event "*** SCC Grand Prix: Titled Tuesday Blitz"]
[Site "Chess.com"]
[Date "2020.07.07"]
[Round "2"]
[White "nikitakhoroshev"]
[Black "LuckIsMySkill"]
[Result "1-0"]
[WhiteElo "2504"]
[BlackElo "2698"]
[TimeControl "180+1"]
[EndTime "10:18:46 PDT"]
[Termination "nikitakhoroshev won on time"]

1. d4 {[%clk 0:03:00.9]} 1... Nf6 {[%clk 0:02:57.9]} 2. c4 {[%clk 0:03:01]} 2...
g6 {[%clk 0:02:57.3]} 3. Nc3 {[%clk 0:03:00.9]} 3... d5 {[%clk 0:02:56.7]} 4.
Nf3 {[%clk 0:03:00.9]} 4... Bg7 {[%clk 0:02:56.1]} 5. e3 {[%clk 0:03:01]} 5...
O-O {[%clk 0:02:54.8]} 6. Qb3 {[%clk 0:03:01]} 6... c6 {[%clk 0:02:38.5]} 7. Bd2
{[%clk 0:03:00.5]} 7... Ne4 {[%clk 0:02:30.1]} 8. cxd5 {[%clk 0:03:00.2]} 8...
Nxc3 {[%clk 0:02:22.9]} 9. dxc6 {[%clk 0:03:00]} 9... Nxc6 {[%clk 0:01:59.4]}
10. Bxc3 {[%clk 0:02:59.8]} 10... a6 {[%clk 0:01:54.5]} 11. Be2 {[%clk
0:02:55.7]} 11... b5 {[%clk 0:01:54.5]} 12. O-O {[%clk 0:02:54]} 12... Be6
{[%clk 0:01:54.4]} 13. Qd1 {[%clk 0:02:52.8]} 13... Bd5 {[%clk 0:01:51.7]} 14.
b3 {[%clk 0:02:51.5]} 14... Qb6 {[%clk 0:01:48]} 15. Rc1 {[%clk 0:02:51]} 15...
Rfd8 {[%clk 0:01:47]} 16. Qc2 {[%clk 0:02:48]} 16... Rac8 {[%clk 0:01:43.8]} 17.
Qb1 {[%clk 0:02:45.2]} 17... f5 {[%clk 0:01:37.7]} 18. Nd2 {[%clk 0:02:37.7]}
18... e5 {[%clk 0:01:36.3]} 19. dxe5 {[%clk 0:02:37.1]} 19... Bxe5 {[%clk
0:01:33]} 20. Bxe5 {[%clk 0:02:36.1]} 20... Nxe5 {[%clk 0:01:33.9]} 21. Rxc8
{[%clk 0:02:36.1]} 21... Rxc8 {[%clk 0:01:34.8]} 22. Rc1 {[%clk 0:02:36.3]}
22... Rd8 {[%clk 0:01:31.1]} 23. Qb2 {[%clk 0:02:32.5]} 23... Qf6 {[%clk
0:01:29.7]} 24. Qc3 {[%clk 0:02:26.7]} 24... Bb7 {[%clk 0:01:16.1]} 25. Nf1
{[%clk 0:02:22]} 25... h5 {[%clk 0:00:56.4]} 26. Qc7 {[%clk 0:02:09.5]} 26...
Rd7 {[%clk 0:00:55.7]} 27. Qb8+ {[%clk 0:02:09.2]} 27... Kg7 {[%clk 0:00:44.7]}
28. Rc7 {[%clk 0:02:08.8]} 28... Bd5 {[%clk 0:00:18.9]} 29. Rxd7+ {[%clk
0:01:53.6]} 29... Nxd7 {[%clk 0:00:19.8]} 30. Qa7 {[%clk 0:01:54.1]} 30... Qc6
{[%clk 0:00:18.4]} 31. Qd4+ {[%clk 0:01:51.2]} 31... Nf6 {[%clk 0:00:16.8]} 32.
f3 {[%clk 0:01:50.4]} 32... Qc7 {[%clk 0:00:13.2]} 33. Kf2 {[%clk 0:01:44.5]}
33... Qe7 {[%clk 0:00:13.1]} 34. Qb2 {[%clk 0:01:40]} 34... h4 {[%clk 0:00:13]}
35. g3 {[%clk 0:01:28.2]} 35... Qd6 {[%clk 0:00:10.8]} 36. Qd4 {[%clk 0:01:25]}
36... hxg3+ {[%clk 0:00:08.4]} 37. hxg3 {[%clk 0:01:25.9]} 37... Kf7 {[%clk
0:00:08]} 38. Qc3 {[%clk 0:01:20]} 38... Qd8 {[%clk 0:00:06.5]} 39. a4 {[%clk
0:01:15.7]} 39... bxa4 {[%clk 0:00:06]} 40. bxa4 {[%clk 0:01:16.6]} 40... a5
{[%clk 0:00:05.8]} 41. Qc5 {[%clk 0:01:15]} 41... Kg7 {[%clk 0:00:03.3]} 42. Qd4
{[%clk 0:01:13.8]} 42... Kf7 {[%clk 0:00:02.8]} 43. Bb5 {[%clk 0:01:10.3]} 43...
Qe7 {[%clk 0:00:02.2]} 44. Be2 {[%clk 0:01:05.8]} 44... Kg7 {[%clk 0:00:01.9]}
45. Nd2 {[%clk 0:01:05.3]} 45... Kf7 {[%clk 0:00:02]} 46. Nc4 {[%clk 0:01:04.9]}
46... Qb4 {[%clk 0:00:01.8]} 47. Ne5+ {[%clk 0:01:03.6]} 47... Ke6 {[%clk
0:00:01.8]} 48. Nd3 {[%clk 0:01:00.1]} 48... Qxd4 {[%clk 0:00:01.4]} 49. exd4
{[%clk 0:01:01]} 49... Bb3 {[%clk 0:00:01.2]} 50. Nc5+ {[%clk 0:01:00]} 50...
Kd5 {[%clk 0:00:01.7]} 51. Nxb3 {[%clk 0:01:00.9]} 1-0

[Event "*** SCC Grand Prix: Titled Tuesday Blitz"]
[Site "Chess.com"]
[Date "2020.07.07"]
[Round "2"]
[White "PIwan"]
[Black "Oneofmyturns"]
[Result "1/2-1/2"]
[WhiteElo "2508"]
[BlackElo "2722"]
[TimeControl "180+1"]
[EndTime "10:18:50 PDT"]
[Termination "Game drawn by repetition"]

1. c4 {[%clk 0:03:00.9]} 1... e6 {[%clk 0:02:59.7]} 2. Nc3 {[%clk 0:02:59]} 2...
d5 {[%clk 0:03:00.6]} 3. d4 {[%clk 0:02:59.1]} 3... Be7 {[%clk 0:02:57.8]} 4.
Nf3 {[%clk 0:02:58.4]} 4... Nf6 {[%clk 0:02:57.1]} 5. cxd5 {[%clk 0:02:58.1]}
5... exd5 {[%clk 0:02:56.6]} 6. Bg5 {[%clk 0:02:58.6]} 6... c6 {[%clk 0:02:57]}
7. e3 {[%clk 0:02:59]} 7... Bf5 {[%clk 0:02:57.2]} 8. Bd3 {[%clk 0:02:50.7]}
8... Bxd3 {[%clk 0:02:57]} 9. Qxd3 {[%clk 0:02:51.6]} 9... Nbd7 {[%clk
0:02:57.3]} 10. O-O {[%clk 0:02:47.8]} 10... O-O {[%clk 0:02:57.4]} 11. Rab1
{[%clk 0:02:45.9]} 11... a5 {[%clk 0:02:57.2]} 12. a3 {[%clk 0:02:44.2]} 12...
Ne4 {[%clk 0:02:42.2]} 13. Bf4 {[%clk 0:02:34.1]} 13... Ndf6 {[%clk 0:02:36.1]}
14. h3 {[%clk 0:02:13.8]} 14... a4 {[%clk 0:02:28.2]} 15. Ne5 {[%clk 0:02:04.9]}
15... Re8 {[%clk 0:02:28]} 16. f3 {[%clk 0:01:58.8]} 16... Nxc3 {[%clk
0:02:15.5]} 17. bxc3 {[%clk 0:01:50.2]} 17... Qc8 {[%clk 0:01:39.2]} 18. c4
{[%clk 0:01:46.5]} 18... dxc4 {[%clk 0:01:30]} 19. Nxc4 {[%clk 0:01:45.2]} 19...
Nd5 {[%clk 0:01:29.9]} 20. Bh2 {[%clk 0:01:40.8]} 20... b5 {[%clk 0:01:29.5]}
21. Ne5 {[%clk 0:01:22.5]} 21... Bd6 {[%clk 0:01:29.6]} 22. e4 {[%clk
0:01:07.1]} 22... Bxe5 {[%clk 0:01:28.3]} 23. Bxe5 {[%clk 0:01:02.2]} 23... Nb6
{[%clk 0:01:27.4]} 24. Bd6 {[%clk 0:00:45.9]} 24... Nc4 {[%clk 0:01:25.1]} 25.
Bc5 {[%clk 0:00:45.4]} 25... Qe6 {[%clk 0:01:18.2]} 26. Rfd1 {[%clk 0:00:42.9]}
26... Rad8 {[%clk 0:01:18.3]} 27. d5 {[%clk 0:00:23.5]} 27... cxd5 {[%clk
0:01:03]} 28. exd5 {[%clk 0:00:24.4]} 28... Qd7 {[%clk 0:00:43]} 29. d6 {[%clk
0:00:18.7]} 29... Re5 {[%clk 0:00:36.8]} 30. Bb4 {[%clk 0:00:17.4]} 30... Rde8
{[%clk 0:00:32.5]} 31. Qd4 {[%clk 0:00:16.2]} 31... h6 {[%clk 0:00:26.9]} 32. f4
{[%clk 0:00:16.2]} 32... Re2 {[%clk 0:00:26.8]} 33. Bc3 {[%clk 0:00:12.7]} 33...
f6 {[%clk 0:00:12.4]} 34. Qd5+ {[%clk 0:00:12.9]} 34... Kh8 {[%clk 0:00:13.1]}
35. Qxb5 {[%clk 0:00:12.9]} 35... Qe6 {[%clk 0:00:10.4]} 36. d7 {[%clk
0:00:11.4]} 36... Rxg2+ {[%clk 0:00:02.6]} 37. Kxg2 {[%clk 0:00:12.3]} 37...
Qe2+ {[%clk 0:00:03.1]} 38. Kh1 {[%clk 0:00:11.4]} 38... Qf3+ {[%clk 0:00:03.7]}
39. Kg1 {[%clk 0:00:11.6]} 39... Qg3+ {[%clk 0:00:04.3]} 40. Kh1 {[%clk
0:00:11.6]} 40... Qxh3+ {[%clk 0:00:05]} 41. Kg1 {[%clk 0:00:11.9]} 41... Qg3+
{[%clk 0:00:05.6]} 42. Kh1 {[%clk 0:00:12.2]} 42... Qh3+ {[%clk 0:00:04.9]} 43.
Kg1 {[%clk 0:00:12.4]} 43... Qg3+ {[%clk 0:00:01.9]} 44. Kh1 {[%clk 0:00:12.3]}
44... Qh3+ {[%clk 0:00:02.2]} 1/2-1/2

[Event "*** SCC Grand Prix: Titled Tuesday Blitz"]
[Site "Chess.com"]
[Date "2020.07.07"]
[Round "2"]
[White "Eltaj_Safarli"]
[Black "AwareIdea"]
[Result "1-0"]
[WhiteElo "2920"]
[BlackElo "2471"]
[TimeControl "180+1"]
[EndTime "10:18:50 PDT"]
[Termination "Eltaj_Safarli won on time"]

1. e4 {[%clk 0:03:00.9]} 1... e5 {[%clk 0:02:59.7]} 2. Nf3 {[%clk 0:03:00.4]}
2... Nc6 {[%clk 0:02:59.6]} 3. Nc3 {[%clk 0:03:01.3]} 3... Nf6 {[%clk
0:02:59.3]} 4. a3 {[%clk 0:03:01.9]} 4... Be7 {[%clk 0:02:58.6]} 5. d4 {[%clk
0:03:00.8]} 5... exd4 {[%clk 0:02:59.5]} 6. Nxd4 {[%clk 0:03:01.7]} 6... O-O
{[%clk 0:02:59.1]} 7. Nxc6 {[%clk 0:02:58.9]} 7... bxc6 {[%clk 0:02:54.2]} 8. e5
{[%clk 0:02:57]} 8... Ne8 {[%clk 0:02:54.1]} 9. Bd3 {[%clk 0:02:57.2]} 9... d5
{[%clk 0:02:50.3]} 10. exd6 {[%clk 0:02:55.9]} 10... cxd6 {[%clk 0:02:49.5]} 11.
O-O {[%clk 0:02:55.5]} 11... d5 {[%clk 0:02:49.5]} 12. Re1 {[%clk 0:02:54]}
12... Nf6 {[%clk 0:02:48]} 13. Bg5 {[%clk 0:02:53.7]} 13... h6 {[%clk
0:02:47.6]} 14. Bh4 {[%clk 0:02:53.7]} 14... Bg4 {[%clk 0:02:43]} 15. Bxf6
{[%clk 0:02:48.2]} 15... Bxd1 {[%clk 0:02:39]} 16. Bxe7 {[%clk 0:02:48.7]} 16...
Qb6 {[%clk 0:02:37.4]} 17. Bxf8 {[%clk 0:02:42.6]} 17... Qxb2 {[%clk 0:02:19]}
18. Rexd1 {[%clk 0:02:31.2]} 18... Kxf8 {[%clk 0:02:12.7]} 19. Ne2 {[%clk
0:02:27.4]} 19... Rb8 {[%clk 0:02:06]} 20. g3 {[%clk 0:02:24.2]} 20... g5 {[%clk
0:02:00.6]} 21. Kg2 {[%clk 0:02:22.8]} 21... c5 {[%clk 0:02:00.6]} 22. Ng1
{[%clk 0:02:14.5]} 22... Qf6 {[%clk 0:01:45.3]} 23. Nf3 {[%clk 0:02:05.7]} 23...
Rb2 {[%clk 0:01:38.4]} 24. Rab1 {[%clk 0:02:01.7]} 24... c4 {[%clk 0:01:32.8]}
25. Rxb2 {[%clk 0:01:59.9]} 25... Qxb2 {[%clk 0:01:33.7]} 26. Bf5 {[%clk
0:01:59.7]} 26... Qxa3 {[%clk 0:01:24.6]} 27. Rxd5 {[%clk 0:01:59.9]} 27... a5
{[%clk 0:01:08.1]} 28. Rd8+ {[%clk 0:01:51.5]} 28... Kg7 {[%clk 0:01:01.2]} 29.
Rd7 {[%clk 0:01:52.4]} 29... Kf6 {[%clk 0:00:55.2]} 30. Be4 {[%clk 0:01:49.1]}
30... a4 {[%clk 0:00:53.5]} 31. Bd5 {[%clk 0:01:48]} 31... Qc3 {[%clk
0:00:47.7]} 32. Rxf7+ {[%clk 0:01:46.4]} 32... Kg6 {[%clk 0:00:47.7]} 33. Rc7
{[%clk 0:01:31.7]} 33... Qxc2 {[%clk 0:00:25.8]} 34. Bxc4 {[%clk 0:01:28.9]}
34... Qd1 {[%clk 0:00:17]} 35. Ra7 {[%clk 0:01:23.1]} 35... Kf6 {[%clk
0:00:14.7]} 36. Ra6+ {[%clk 0:01:18.7]} 36... Kg7 {[%clk 0:00:13.7]} 37. h3
{[%clk 0:01:05]} 37... Kf8 {[%clk 0:00:05.8]} 38. Bb5 {[%clk 0:01:04.2]} 38...
Qb3 {[%clk 0:00:02.3]} 39. Bxa4 {[%clk 0:01:03.6]} 39... Qc4 {[%clk 0:00:02.9]}
40. Ra8+ {[%clk 0:01:01.9]} 40... Kg7 {[%clk 0:00:03.4]} 41. Ra7+ {[%clk
0:01:00.3]} 41... Kf8 {[%clk 0:00:03.4]} 42. Bd7 {[%clk 0:00:59]} 42... h5
{[%clk 0:00:03.1]} 43. Nxg5 {[%clk 0:00:54.5]} 43... Qd5+ {[%clk 0:00:03]} 44.
Nf3 {[%clk 0:00:54.8]} 44... Qc5 {[%clk 0:00:02.3]} 45. Ra8+ {[%clk 0:00:53.9]}
45... Ke7 {[%clk 0:00:02.5]} 46. Ba4 {[%clk 0:00:54]} 46... Qd5 {[%clk 0:00:02]}
47. Re8+ {[%clk 0:00:53.6]} 47... Kf6 {[%clk 0:00:01.9]} 48. Re3 {[%clk
0:00:54.5]} 48... Qa8 {[%clk 0:00:01.4]} 49. Bb3 {[%clk 0:00:54.6]} 49... Kg7
{[%clk 0:00:01.2]} 50. Re7+ {[%clk 0:00:54.4]} 50... Kf6 {[%clk 0:00:01.3]} 51.
Rf7+ {[%clk 0:00:55.3]} 51... Kg6 {[%clk 0:00:01.7]} 52. Rf4 {[%clk 0:00:55.4]}
52... Kh6 {[%clk 0:00:01.4]} 53. h4 {[%clk 0:00:52.8]} 53... Qb7 {[%clk
0:00:01.1]} 54. Be6 {[%clk 0:00:49.5]} 1-0

[Event "*** SCC Grand Prix: Titled Tuesday Blitz"]
[Site "Chess.com"]
[Date "2020.07.07"]
[Round "2"]
[White "dolynachess"]
[Black "Shushik"]
[Result "1-0"]
[WhiteElo "2433"]
[BlackElo "2194"]
[TimeControl "180+1"]
[EndTime "10:18:50 PDT"]
[Termination "dolynachess won on time"]

1. d4 {[%clk 0:03:00.9]} 1... d5 {[%clk 0:02:59.8]} 2. c4 {[%clk 0:02:54.5]}
2... e6 {[%clk 0:02:59.7]} 3. Nf3 {[%clk 0:02:54.3]} 3... Nf6 {[%clk 0:02:59.6]}
4. g3 {[%clk 0:02:55.2]} 4... dxc4 {[%clk 0:02:59.6]} 5. Bg2 {[%clk 0:02:56.1]}
5... Nc6 {[%clk 0:02:58.5]} 6. O-O {[%clk 0:02:57]} 6... Rb8 {[%clk 0:02:57.4]}
7. a4 {[%clk 0:02:56.2]} 7... b6 {[%clk 0:02:56.7]} 8. Na3 {[%clk 0:02:51.5]}
8... Na5 {[%clk 0:02:52.2]} 9. Ne5 {[%clk 0:02:49.9]} 9... Bb7 {[%clk
0:02:49.8]} 10. Bxb7 {[%clk 0:02:43.7]} 10... Rxb7 {[%clk 0:02:45.5]} 11. Naxc4
{[%clk 0:02:44.6]} 11... Nxc4 {[%clk 0:02:43.1]} 12. Nxc4 {[%clk 0:02:45.5]}
12... Be7 {[%clk 0:02:43]} 13. Ne5 {[%clk 0:02:34.1]} 13... Qd5 {[%clk
0:02:38.3]} 14. Qc2 {[%clk 0:02:18.9]} 14... O-O {[%clk 0:02:31.5]} 15. Nc6
{[%clk 0:02:15.3]} 15... Bc5 {[%clk 0:02:24.4]} 16. dxc5 {[%clk 0:02:05.8]}
16... Qxc6 {[%clk 0:02:22]} 17. Be3 {[%clk 0:01:48.4]} 17... bxc5 {[%clk
0:02:20.4]} 18. Qxc5 {[%clk 0:01:44.8]} 18... Qe4 {[%clk 0:02:13.1]} 19. Qd4
{[%clk 0:01:30.1]} 19... Qg6 {[%clk 0:02:06.9]} 20. Rac1 {[%clk 0:01:22.7]}
20... Ng4 {[%clk 0:01:57.2]} 21. Bf4 {[%clk 0:01:16.6]} 21... e5 {[%clk
0:01:38.5]} 22. Qd5 {[%clk 0:01:09.3]} 22... Rbb8 {[%clk 0:01:33.4]} 23. Be3
{[%clk 0:00:55.5]} 23... Qh5 {[%clk 0:01:21.4]} 24. Qg2 {[%clk 0:00:18.5]} 24...
Rxb2 {[%clk 0:01:19.4]} 25. Bxa7 {[%clk 0:00:16.7]} 25... Rxe2 {[%clk
0:01:16.6]} 26. h3 {[%clk 0:00:16.5]} 26... Nf6 {[%clk 0:01:07.6]} 27. Rxc7
{[%clk 0:00:16.9]} 27... Ne4 {[%clk 0:00:58.3]} 28. Be3 {[%clk 0:00:14.3]} 28...
f5 {[%clk 0:00:42]} 29. g4 {[%clk 0:00:09.3]} 29... Qg6 {[%clk 0:00:21.5]} 30.
gxf5 {[%clk 0:00:09.4]} 30... Qxg2+ {[%clk 0:00:21.3]} 31. Kxg2 {[%clk
0:00:10.3]} 31... Rxf5 {[%clk 0:00:21.2]} 32. a5 {[%clk 0:00:09.3]} 32... Rf6
{[%clk 0:00:20.1]} 33. Rb1 {[%clk 0:00:04.7]} 33... Nxf2 {[%clk 0:00:15.4]} 34.
Rb8+ {[%clk 0:00:03.6]} 34... Rf8 {[%clk 0:00:15.3]} 35. Rxf8+ {[%clk
0:00:04.2]} 1-0